[Event "Early-Titled-Tuesday-Blitz-January-30-2024"]
[Site "Chess.com"]
[Date "2024.01.30"]
[Round "3"]
[White "chucksterf10"]
[Black "Bauman_Guy"]
[Result "1/2-1/2"]
[WhiteElo "2598"]
[BlackElo "2874"]
[TimeControl "180+1"]
[EndTime "8:32:18 PST"]
[Termination "Game drawn - insufficient material"]

1. d4 {[%clk 0:03:00.9]} 1... Nf6 {[%clk 0:02:59.9]} 2. c4 {[%clk 0:03:00.8]}
2... e6 {[%clk 0:03:00]} 3. g3 {[%clk 0:02:59.8]} 3... c5 {[%clk 0:03:00]} 4. d5
{[%clk 0:02:59.8]} 4... exd5 {[%clk 0:03:00.9]} 5. cxd5 {[%clk 0:03:00.7]} 5...
d6 {[%clk 0:03:01.4]} 6. Nc3 {[%clk 0:03:00.8]} 6... g6 {[%clk 0:03:01.9]} 7. e4
{[%clk 0:03:00.9]} 7... Bg7 {[%clk 0:03:02.5]} 8. Nf3 {[%clk 0:02:57.6]} 8...
O-O {[%clk 0:03:02.7]} 9. Nd2 {[%clk 0:02:58.1]} 9... Re8 {[%clk 0:03:01.1]} 10.
Bg2 {[%clk 0:02:57.6]} 10... Bg4 {[%clk 0:02:55.4]} 11. f3 {[%clk 0:02:55]}
11... Bd7 {[%clk 0:02:53.4]} 12. a4 {[%clk 0:02:55.2]} 12... a6 {[%clk
0:02:53.2]} 13. O-O {[%clk 0:02:53.8]} 13... Qc7 {[%clk 0:02:28.3]} 14. Nc4
{[%clk 0:02:51.4]} 14... Bc8 {[%clk 0:02:26.9]} 15. Bf4 {[%clk 0:02:49.8]} 15...
Bf8 {[%clk 0:02:27.3]} 16. e5 {[%clk 0:02:46.6]} 16... dxe5 {[%clk 0:02:27.4]}
17. d6 {[%clk 0:02:46.8]} 17... Qd8 {[%clk 0:02:26.8]} 18. Bxe5 {[%clk
0:02:45.3]} 18... Be6 {[%clk 0:02:22.1]} 19. Bxf6 {[%clk 0:02:29]} 19... Qxf6
{[%clk 0:02:23]} 20. Nb6 {[%clk 0:02:29.7]} 20... Ra7 {[%clk 0:02:22.3]} 21. Ne4
{[%clk 0:02:10.1]} 21... Qd8 {[%clk 0:02:22]} 22. a5 {[%clk 0:02:09.9]} 22...
Nd7 {[%clk 0:02:19.8]} 23. Nxd7 {[%clk 0:02:08.9]} 23... Bxd7 {[%clk 0:02:20.7]}
24. Nxc5 {[%clk 0:02:08.6]} 24... Bc6 {[%clk 0:02:21.2]} 25. Qd4 {[%clk
0:01:52.3]} 25... Qxd6 {[%clk 0:02:19.1]} 26. Qxd6 {[%clk 0:01:45.2]} 26... Bxd6
{[%clk 0:02:20]} 27. Ne4 {[%clk 0:01:46.1]} 27... Bxe4 {[%clk 0:02:19.4]} 28.
fxe4 {[%clk 0:01:47]} 28... Be5 {[%clk 0:02:09.8]} 29. Rad1 {[%clk 0:01:33.4]}
29... b6 {[%clk 0:02:00.3]} 30. axb6 {[%clk 0:01:32.5]} 30... Rb7 {[%clk
0:02:00.7]} 31. b3 {[%clk 0:01:28.4]} 31... Ree7 {[%clk 0:01:54.9]} 32. Rf3
{[%clk 0:01:19.9]} 32... Rxb6 {[%clk 0:01:54.7]} 33. Bf1 {[%clk 0:01:20.3]}
33... Kg7 {[%clk 0:01:50.9]} 34. Bc4 {[%clk 0:01:16]} 34... a5 {[%clk 0:01:48]}
35. Rd5 {[%clk 0:01:13.5]} 35... a4 {[%clk 0:01:47.3]} 36. bxa4 {[%clk
0:01:09.9]} 36... Rb4 {[%clk 0:01:47.7]} 37. Bb5 {[%clk 0:00:52]} 37... Rxe4
{[%clk 0:01:47.3]} 38. a5 {[%clk 0:00:52.6]} 38... Rb4 {[%clk 0:01:38.5]} 39. a6
{[%clk 0:00:48.7]} 39... Bd4+ {[%clk 0:01:36]} 40. Kg2 {[%clk 0:00:48.8]} 40...
Rb2+ {[%clk 0:01:36]} 41. Kh3 {[%clk 0:00:48.9]} 41... Bg1 {[%clk 0:01:36.6]}
42. g4 {[%clk 0:00:34.2]} 42... Rxh2+ {[%clk 0:01:31.5]} 43. Kg3 {[%clk
0:00:33.9]} 43... Ra2 {[%clk 0:01:21.1]} 44. Bc4 {[%clk 0:00:20.7]} 44... Ra4
{[%clk 0:01:15]} 45. Bb5 {[%clk 0:00:20.6]} 45... Ra1 {[%clk 0:01:13]} 46. Rfd3
{[%clk 0:00:18.1]} 46... Ra5 {[%clk 0:00:54.2]} 47. Bc4 {[%clk 0:00:14.9]} 47...
Ra4 {[%clk 0:00:42.2]} 48. Bb5 {[%clk 0:00:15.2]} 48... Rae4 {[%clk 0:00:42.2]}
49. Rd7 {[%clk 0:00:14.8]} 49... Bc5 {[%clk 0:00:29]} 50. Bc6 {[%clk 0:00:12.6]}
50... R4e5 {[%clk 0:00:25]} 51. Rxe7 {[%clk 0:00:12]} 51... Rxe7 {[%clk
0:00:25.3]} 52. Rd5 {[%clk 0:00:09]} 52... Ba7 {[%clk 0:00:22.5]} 53. Rb5 {[%clk
0:00:09.4]} 53... Rc7 {[%clk 0:00:18.4]} 54. Bd5 {[%clk 0:00:09.1]} 54... Kf6
{[%clk 0:00:18]} 55. Bf3 {[%clk 0:00:07.4]} 55... h6 {[%clk 0:00:16]} 56. Kg2
{[%clk 0:00:07.4]} 56... Kg7 {[%clk 0:00:12.8]} 57. Kg3 {[%clk 0:00:07.1]} 57...
Kf6 {[%clk 0:00:11.4]} 58. Kg2 {[%clk 0:00:07.5]} 58... Rc2+ {[%clk 0:00:12]}
59. Kg3 {[%clk 0:00:07.4]} 59... Ra2 {[%clk 0:00:12.4]} 60. Bb7 {[%clk
0:00:04.5]} 60... Ra3+ {[%clk 0:00:12.8]} 61. Kg2 {[%clk 0:00:04.9]} 61... Bb8
{[%clk 0:00:10.9]} 62. Rb4 {[%clk 0:00:03.6]} 62... Kg5 {[%clk 0:00:10.2]} 63.
Bd5 {[%clk 0:00:02.7]} 63... Bd6 {[%clk 0:00:08]} 64. Rb5 {[%clk 0:00:02.3]}
64... Kxg4 {[%clk 0:00:07.4]} 65. Bxf7 {[%clk 0:00:02.8]} 65... Rxa6 {[%clk
0:00:06.1]} 66. Bxg6 {[%clk 0:00:02.1]} 66... Ra2+ {[%clk 0:00:06.7]} 67. Kf1
{[%clk 0:00:02.6]} 67... Bf4 {[%clk 0:00:05.3]} 68. Bh5+ {[%clk 0:00:02.9]}
68... Kh4 {[%clk 0:00:04.8]} 69. Be2 {[%clk 0:00:02.7]} 69... Be3 {[%clk
0:00:04.6]} 70. Re5 {[%clk 0:00:01.7]} 70... Ra1+ {[%clk 0:00:02.6]} 71. Kg2
{[%clk 0:00:02.1]} 71... Bd4 {[%clk 0:00:03.2]} 72. Re4+ {[%clk 0:00:02.3]}
72... Kg5 {[%clk 0:00:02.6]} 73. Rxd4 {[%clk 0:00:03.2]} 73... Kf5 {[%clk
0:00:03.4]} 74. Kf3 {[%clk 0:00:03.5]} 74... Ke5 {[%clk 0:00:03.6]} 75. Rd3
{[%clk 0:00:03.5]} 75... Ra4 {[%clk 0:00:03.1]} 76. Re3+ {[%clk 0:00:03.9]}
76... Kf6 {[%clk 0:00:03.8]} 77. Kg3 {[%clk 0:00:04.1]} 77... Kf5 {[%clk
0:00:03.5]} 78. Rf3+ {[%clk 0:00:04.6]} 78... Kg5 {[%clk 0:00:03.7]} 79. Bd3
{[%clk 0:00:05.2]} 79... Rg4+ {[%clk 0:00:03.7]} 80. Kh3 {[%clk 0:00:05.5]}
80... Rh4+ {[%clk 0:00:04.2]} 81. Kg3 {[%clk 0:00:06.1]} 81... Rg4+ {[%clk
0:00:04.9]} 82. Kh2 {[%clk 0:00:06.1]} 82... Rh4+ {[%clk 0:00:05.4]} 83. Kg2
{[%clk 0:00:06.7]} 83... Rg4+ {[%clk 0:00:06]} 84. Kf2 {[%clk 0:00:07.4]} 84...
Rf4 {[%clk 0:00:06.5]} 85. Be2 {[%clk 0:00:07.4]} 85... Rxf3+ {[%clk 0:00:06.8]}
86. Bxf3 {[%clk 0:00:08.3]} 86... h5 {[%clk 0:00:07.5]} 87. Bxh5 {[%clk
0:00:08.8]} 1/2-1/2

[Event "Early-Titled-Tuesday-Blitz-January-30-2024"]
[Site "Chess.com"]
[Date "2024.01.30"]
[Round "3"]
[White "jk13"]
[Black "frederiksvane"]
[Result "0-1"]
[WhiteElo "2695"]
[BlackElo "2923"]
[TimeControl "180+1"]
[EndTime "8:32:22 PST"]
[Termination "frederiksvane won by checkmate"]

1. e4 {[%clk 0:03:00.9]} 1... c5 {[%clk 0:02:59.4]} 2. c3 {[%clk 0:03:00.8]}
2... e6 {[%clk 0:02:58.9]} 3. d4 {[%clk 0:03:00.6]} 3... d5 {[%clk 0:02:59.6]}
4. exd5 {[%clk 0:03:01.5]} 4... exd5 {[%clk 0:03:00.1]} 5. Nf3 {[%clk
0:03:02.1]} 5... Nf6 {[%clk 0:03:00.3]} 6. Bb5+ {[%clk 0:03:02.2]} 6... Bd7
{[%clk 0:03:00.9]} 7. Bxd7+ {[%clk 0:03:02]} 7... Nbxd7 {[%clk 0:03:01.8]} 8.
O-O {[%clk 0:03:02.3]} 8... Be7 {[%clk 0:03:02.5]} 9. dxc5 {[%clk 0:03:02.4]}
9... Nxc5 {[%clk 0:03:03]} 10. Be3 {[%clk 0:03:01.8]} 10... O-O {[%clk
0:03:02.8]} 11. Nbd2 {[%clk 0:03:02.5]} 11... Re8 {[%clk 0:02:59.5]} 12. Nb3
{[%clk 0:03:02.7]} 12... Nce4 {[%clk 0:02:58.8]} 13. Bd4 {[%clk 0:03:02.2]}
13... a5 {[%clk 0:02:49.7]} 14. a4 {[%clk 0:03:01.4]} 14... h6 {[%clk
0:02:47.7]} 15. Re1 {[%clk 0:02:59.1]} 15... Qc7 {[%clk 0:02:42.2]} 16. h3
{[%clk 0:02:55.7]} 16... Rad8 {[%clk 0:02:30.9]} 17. Qd3 {[%clk 0:02:55.5]}
17... Bd6 {[%clk 0:02:24]} 18. Qb5 {[%clk 0:02:52.9]} 18... Nh5 {[%clk
0:01:56.4]} 19. Bb6 {[%clk 0:02:42.8]} 19... Qc8 {[%clk 0:01:54.4]} 20. Bxd8
{[%clk 0:02:42.4]} 20... Rxd8 {[%clk 0:01:55.1]} 21. Rxe4 {[%clk 0:02:18.3]}
21... dxe4 {[%clk 0:01:56]} 22. Qxh5 {[%clk 0:02:18.3]} 22... exf3 {[%clk
0:01:56.5]} 23. Qxf3 {[%clk 0:02:19.2]} 23... b6 {[%clk 0:01:51.8]} 24. Qe4
{[%clk 0:00:39.8]} 24... Re8 {[%clk 0:01:51.7]} 25. Qd3 {[%clk 0:00:39.4]} 25...
Qd7 {[%clk 0:01:50.7]} 26. Nd4 {[%clk 0:00:36.9]} 26... Bc5 {[%clk 0:01:48.5]}
27. b3 {[%clk 0:00:32]} 27... g6 {[%clk 0:01:44.4]} 28. Rd1 {[%clk 0:00:31.9]}
28... Qd5 {[%clk 0:01:42.6]} 29. Qb5 {[%clk 0:00:26.3]} 29... Qe5 {[%clk
0:01:26.9]} 30. h4 {[%clk 0:00:21.2]} 30... Kg7 {[%clk 0:01:19.9]} 31. g3 {[%clk
0:00:21]} 31... Re7 {[%clk 0:01:09.9]} 32. Qc4 {[%clk 0:00:19.1]} 32... Qe4
{[%clk 0:01:06.7]} 33. Qd3 {[%clk 0:00:18.4]} 33... Qd5 {[%clk 0:01:00.5]} 34.
Qb5 {[%clk 0:00:16.1]} 34... Qe4 {[%clk 0:00:56.3]} 35. Qd3 {[%clk 0:00:15.9]}
35... Qd5 {[%clk 0:00:56.1]} 36. Qb5 {[%clk 0:00:12.4]} 36... Qe5 {[%clk
0:00:54.9]} 37. Qd3 {[%clk 0:00:10.8]} 37... Qf6 {[%clk 0:00:40.8]} 38. Rd2
{[%clk 0:00:10.5]} 38... Re1+ {[%clk 0:00:39.6]} 39. Kg2 {[%clk 0:00:10.9]}
39... h5 {[%clk 0:00:30.1]} 40. Nf3 {[%clk 0:00:09.9]} 40... Re6 {[%clk
0:00:27.8]} 41. Qc4 {[%clk 0:00:07.2]} 41... Qf5 {[%clk 0:00:23.1]} 42. Re2
{[%clk 0:00:06.5]} 42... Rf6 {[%clk 0:00:20.5]} 43. Qe4 {[%clk 0:00:05.8]} 43...
Qd7 {[%clk 0:00:20.3]} 44. Qe5 {[%clk 0:00:05.6]} 44... Qc6 {[%clk 0:00:18.9]}
45. Re4 {[%clk 0:00:05.9]} 45... Bd6 {[%clk 0:00:18.9]} 46. Qd4 {[%clk
0:00:05.3]} 46... Bc5 {[%clk 0:00:19.4]} 47. Qe5 {[%clk 0:00:05.5]} 47... Kh7
{[%clk 0:00:19.2]} 48. Rf4 {[%clk 0:00:05.6]} 48... Rxf4 {[%clk 0:00:15.7]} 49.
Qxf4 {[%clk 0:00:06.5]} 49... Kg8 {[%clk 0:00:15.7]} 50. Kg1 {[%clk 0:00:06.7]}
50... Bd6 {[%clk 0:00:15.7]} 51. Qe3 {[%clk 0:00:06.4]} 51... Qd5 {[%clk
0:00:15.2]} 52. c4 {[%clk 0:00:06.1]} 52... Qb7 {[%clk 0:00:13.9]} 53. Ng5
{[%clk 0:00:05.2]} 53... Bc5 {[%clk 0:00:10.5]} 54. Qd3 {[%clk 0:00:04.9]} 54...
Qe7 {[%clk 0:00:07.9]} 55. Ne4 {[%clk 0:00:04.7]} 55... Bb4 {[%clk 0:00:07.5]}
56. Qd5 {[%clk 0:00:04.8]} 56... Kf8 {[%clk 0:00:07.1]} 57. Qd4 {[%clk
0:00:05.1]} 57... Ke8 {[%clk 0:00:06]} 58. Nf6+ {[%clk 0:00:05.4]} 58... Kf8
{[%clk 0:00:06.6]} 59. Nd5 {[%clk 0:00:05.4]} 59... Qe1+ {[%clk 0:00:06.3]} 60.
Kg2 {[%clk 0:00:06.1]} 60... Ke8 {[%clk 0:00:04.1]} 61. Qh8+ {[%clk 0:00:06.2]}
61... Kd7 {[%clk 0:00:04.4]} 62. Nxb6+ {[%clk 0:00:06.5]} 62... Kc6 {[%clk
0:00:04.6]} 63. Nd5 {[%clk 0:00:06.2]} 63... Qe4+ {[%clk 0:00:02.3]} 64. Kh2
{[%clk 0:00:06.8]} 64... Qf3 {[%clk 0:00:02.7]} 65. Qf6+ {[%clk 0:00:07.3]}
65... Qxf6 {[%clk 0:00:02.7]} 66. Nxf6 {[%clk 0:00:08.2]} 66... Bc5 {[%clk
0:00:03.5]} 67. Kg2 {[%clk 0:00:08.1]} 67... Bd4 {[%clk 0:00:03.6]} 68. Ne4
{[%clk 0:00:08.3]} 68... f5 {[%clk 0:00:04.2]} 69. Nd2 {[%clk 0:00:08.2]} 69...
Kc5 {[%clk 0:00:04.4]} 70. Nf3 {[%clk 0:00:07.3]} 70... Bf6 {[%clk 0:00:04.6]}
71. Ne1 {[%clk 0:00:07.5]} 71... Kb4 {[%clk 0:00:04.7]} 72. Nd3+ {[%clk
0:00:07.8]} 72... Kxb3 {[%clk 0:00:05.3]} 73. c5 {[%clk 0:00:08.5]} 73... Kxa4
{[%clk 0:00:05.3]} 74. c6 {[%clk 0:00:08.3]} 74... Bd8 {[%clk 0:00:05.8]} 75.
Nc5+ {[%clk 0:00:08.5]} 75... Kb4 {[%clk 0:00:05.3]} 76. Ne6 {[%clk 0:00:09.4]}
76... Bb6 {[%clk 0:00:05.6]} 77. c7 {[%clk 0:00:09.5]} 77... Bxc7 {[%clk
0:00:06.1]} 78. Nxc7 {[%clk 0:00:10.4]} 78... a4 {[%clk 0:00:06.9]} 79. Nd5+
{[%clk 0:00:11.1]} 79... Kb3 {[%clk 0:00:07.6]} 80. Ne3 {[%clk 0:00:05.5]} 80...
a3 {[%clk 0:00:07.7]} 81. Nf1 {[%clk 0:00:03.7]} 81... Kc3 {[%clk 0:00:08.2]}
82. Ne3 {[%clk 0:00:03.7]} 82... a2 {[%clk 0:00:08.5]} 83. Nd5+ {[%clk
0:00:04.1]} 83... Kb2 {[%clk 0:00:08.5]} 84. Nf4 {[%clk 0:00:04.8]} 84... a1=Q
{[%clk 0:00:08.8]} 85. Nxg6 {[%clk 0:00:05.7]} 85... Qa8+ {[%clk 0:00:09.3]} 86.
Kg1 {[%clk 0:00:05.2]} 86... Qf3 {[%clk 0:00:09.5]} 87. Nf4 {[%clk 0:00:05.8]}
87... Kc3 {[%clk 0:00:09.5]} 88. Nh3 {[%clk 0:00:06]} 88... Kd3 {[%clk
0:00:09.1]} 89. Nf4+ {[%clk 0:00:04.9]} 89... Kd2 {[%clk 0:00:09.4]} 90. Kf1
{[%clk 0:00:05.2]} 90... Qh1# {[%clk 0:00:09.4]} 0-1

[Event "Early-Titled-Tuesday-Blitz-January-30-2024"]
[Site "Chess.com"]
[Date "2024.01.30"]
[Round "3"]
[White "the_chess_child"]
[Black "dcann0n88"]
[Result "1-0"]
[WhiteElo "2880"]
[BlackElo "2442"]
[TimeControl "180+1"]
[EndTime "8:32:26 PST"]
[Termination "the_chess_child won on time"]

1. e4 {[%clk 0:03:00.9]} 1... c5 {[%clk 0:02:56.1]} 2. Nf3 {[%clk 0:03:00.8]}
2... e6 {[%clk 0:02:55]} 3. d3 {[%clk 0:03:00.7]} 3... Nc6 {[%clk 0:02:51]} 4.
g3 {[%clk 0:03:00.4]} 4... g6 {[%clk 0:02:50.8]} 5. Bg2 {[%clk 0:03:00.1]} 5...
Bg7 {[%clk 0:02:51.4]} 6. O-O {[%clk 0:03:00]} 6... Nge7 {[%clk 0:02:50.3]} 7.
Re1 {[%clk 0:02:59.9]} 7... e5 {[%clk 0:02:48.2]} 8. Nc3 {[%clk 0:02:59]} 8...
O-O {[%clk 0:02:47]} 9. Nd2 {[%clk 0:02:59]} 9... d6 {[%clk 0:02:44.8]} 10. Nc4
{[%clk 0:02:58.8]} 10... Be6 {[%clk 0:02:42.9]} 11. Nd5 {[%clk 0:02:58.7]} 11...
Qd7 {[%clk 0:02:36.5]} 12. a4 {[%clk 0:02:54.3]} 12... Bh3 {[%clk 0:02:25.8]}
13. Bxh3 {[%clk 0:02:27.8]} 13... Qxh3 {[%clk 0:02:26.7]} 14. Nxe7+ {[%clk
0:02:25.5]} 14... Nxe7 {[%clk 0:02:27.1]} 15. Nxd6 {[%clk 0:02:26.1]} 15... f5
{[%clk 0:02:26.2]} 16. exf5 {[%clk 0:02:23.4]} 16... Nxf5 {[%clk 0:02:22.2]} 17.
Nxf5 {[%clk 0:02:14.1]} 17... Rxf5 {[%clk 0:02:23.1]} 18. Be3 {[%clk 0:02:14.3]}
18... b6 {[%clk 0:02:20.9]} 19. a5 {[%clk 0:02:12.6]} 19... Raf8 {[%clk
0:02:20.9]} 20. c3 {[%clk 0:02:12.3]} 20... Bh6 {[%clk 0:02:04.6]} 21. Qe2
{[%clk 0:01:44.5]} 21... Bxe3 {[%clk 0:01:59.8]} 22. fxe3 {[%clk 0:01:44.5]}
22... Rf2 {[%clk 0:01:56.8]} 23. Qxf2 {[%clk 0:01:44.7]} 23... Rxf2 {[%clk
0:01:57.7]} 24. Kxf2 {[%clk 0:01:45.4]} 24... Qxh2+ {[%clk 0:01:58]} 25. Kf3
{[%clk 0:01:45.7]} 25... Qxb2 {[%clk 0:01:55.8]} 26. axb6 {[%clk 0:01:45.5]}
26... axb6 {[%clk 0:01:56.5]} 27. c4 {[%clk 0:01:26.9]} 27... Qc3 {[%clk
0:01:37.5]} 28. Ke4 {[%clk 0:01:26.3]} 28... Qb2 {[%clk 0:01:14.5]} 29. Ra8+
{[%clk 0:01:08.3]} 29... Kg7 {[%clk 0:01:14.4]} 30. Ra7+ {[%clk 0:01:08.7]}
30... Kf6 {[%clk 0:01:09.1]} 31. Rf1+ {[%clk 0:01:08.4]} 31... Kg5 {[%clk
0:01:09.3]} 32. Raf7 {[%clk 0:01:02.9]} 32... h5 {[%clk 0:01:05.6]} 33. R1f3
{[%clk 0:00:59.3]} 33... b5 {[%clk 0:01:01.8]} 34. cxb5 {[%clk 0:00:58.3]} 34...
Qxb5 {[%clk 0:01:02.7]} 35. R3f6 {[%clk 0:00:49.8]} 35... c4 {[%clk 0:00:42.9]}
36. dxc4 {[%clk 0:00:42]} 36... Qxc4+ {[%clk 0:00:43]} 37. Kxe5 {[%clk
0:00:42.7]} 37... Qc3+ {[%clk 0:00:42.3]} 38. Ke4 {[%clk 0:00:43.1]} 38... Qc2+
{[%clk 0:00:39.1]} 39. Kf3 {[%clk 0:00:39]} 39... Qd1+ {[%clk 0:00:37]} 40. Ke4
{[%clk 0:00:39]} 40... Qh1+ {[%clk 0:00:35.1]} 41. Rf3 {[%clk 0:00:36.9]} 41...
Qb1+ {[%clk 0:00:35.3]} 42. Ke5 {[%clk 0:00:37.1]} 42... Qb5+ {[%clk 0:00:35.3]}
43. Ke6 {[%clk 0:00:37.2]} 43... Qc6+ {[%clk 0:00:33.3]} 44. Ke7 {[%clk
0:00:37.4]} 44... Qe4+ {[%clk 0:00:32.3]} 45. Kf8 {[%clk 0:00:37.6]} 45... Kh6
{[%clk 0:00:25.4]} 46. R7f4 {[%clk 0:00:25.5]} 46... Qb7 {[%clk 0:00:20.7]} 47.
e4 {[%clk 0:00:23.4]} 47... Qc8+ {[%clk 0:00:19.7]} 48. Ke7 {[%clk 0:00:23.5]}
48... Qc7+ {[%clk 0:00:19.2]} 49. Ke6 {[%clk 0:00:23.8]} 49... Qc8+ {[%clk
0:00:19.2]} 50. Kd5 {[%clk 0:00:23.4]} 50... Qd7+ {[%clk 0:00:19.4]} 51. Kc4
{[%clk 0:00:23.8]} 51... Qe6+ {[%clk 0:00:19.3]} 52. Kd3 {[%clk 0:00:24.1]}
52... Qd6+ {[%clk 0:00:19.6]} 53. Ke2 {[%clk 0:00:24.7]} 53... Qe5 {[%clk
0:00:19.8]} 54. Re3 {[%clk 0:00:23.8]} 54... Qb2+ {[%clk 0:00:20.2]} 55. Kf1
{[%clk 0:00:22]} 55... g5 {[%clk 0:00:20.2]} 56. Rf2 {[%clk 0:00:20.7]} 56...
Qc1+ {[%clk 0:00:19.9]} 57. Re1 {[%clk 0:00:21.1]} 57... Qc4+ {[%clk 0:00:19.9]}
58. Kg2 {[%clk 0:00:21.3]} 58... Qc6 {[%clk 0:00:18.8]} 59. Kh2 {[%clk
0:00:21.2]} 59... h4 {[%clk 0:00:17.1]} 60. gxh4 {[%clk 0:00:21.2]} 60... gxh4
{[%clk 0:00:18]} 61. e5 {[%clk 0:00:21.8]} 61... Kh5 {[%clk 0:00:14.8]} 62. e6
{[%clk 0:00:19.4]} 62... Qd6+ {[%clk 0:00:15.4]} 63. Kh1 {[%clk 0:00:20]} 63...
Qd5+ {[%clk 0:00:15.7]} 64. Kg1 {[%clk 0:00:20.6]} 64... Qg5+ {[%clk 0:00:11.8]}
65. Kf1 {[%clk 0:00:21.1]} 65... Qb5+ {[%clk 0:00:11.2]} 66. Ree2 {[%clk
0:00:21.5]} 66... Qb1+ {[%clk 0:00:11.6]} 67. Kg2 {[%clk 0:00:21.6]} 67... Qg6+
{[%clk 0:00:11.6]} 68. Kh1 {[%clk 0:00:22.2]} 68... Qb1+ {[%clk 0:00:11.5]} 69.
Kh2 {[%clk 0:00:22.9]} 69... Qb8+ {[%clk 0:00:11.5]} 70. Kg1 {[%clk 0:00:23.3]}
70... Qb1+ {[%clk 0:00:09.7]} 71. Rf1 {[%clk 0:00:23.8]} 71... Qg6+ {[%clk
0:00:09.8]} 72. Kh1 {[%clk 0:00:23.4]} 72... Qd3 {[%clk 0:00:05]} 73. Re5+
{[%clk 0:00:18.4]} 73... Kg4 {[%clk 0:00:05.3]} 74. Rff5 {[%clk 0:00:12.3]}
74... Qd1+ {[%clk 0:00:04.1]} 75. Kg2 {[%clk 0:00:12.7]} 75... h3+ {[%clk
0:00:04.7]} 76. Kf2 {[%clk 0:00:13.1]} 76... Qd2+ {[%clk 0:00:04.7]} 77. Kf1
{[%clk 0:00:13.4]} 77... Qg2+ {[%clk 0:00:05.2]} 78. Ke1 {[%clk 0:00:13.3]}
78... Qg3+ {[%clk 0:00:05.3]} 79. Ke2 {[%clk 0:00:12.8]} 79... Qg2+ {[%clk
0:00:04.1]} 80. Rf2 {[%clk 0:00:13.1]} 80... Qc6 {[%clk 0:00:02.1]} 81. e7
{[%clk 0:00:12.9]} 1-0

[Event "Early-Titled-Tuesday-Blitz-January-30-2024"]
[Site "Chess.com"]
[Date "2024.01.30"]
[Round "3"]
[White "MetiForce"]
[Black "BelyakovBogdan"]
[Result "0-1"]
[WhiteElo "2842"]
[BlackElo "2544"]
[TimeControl "180+1"]
[EndTime "8:32:41 PST"]
[Termination "BelyakovBogdan won by resignation"]

1. d4 {[%clk 0:02:56.3]} 1... Nf6 {[%clk 0:02:59.7]} 2. Nc3 {[%clk 0:02:54.9]}
2... d5 {[%clk 0:02:57.8]} 3. Bf4 {[%clk 0:02:55.1]} 3... a6 {[%clk 0:02:56.8]}
4. e3 {[%clk 0:02:52.9]} 4... Bf5 {[%clk 0:02:51.7]} 5. Nf3 {[%clk 0:02:52.3]}
5... e6 {[%clk 0:02:51.4]} 6. Bd3 {[%clk 0:02:43.9]} 6... Bg6 {[%clk 0:02:49.9]}
7. Ne5 {[%clk 0:02:41.8]} 7... c5 {[%clk 0:02:46]} 8. h4 {[%clk 0:02:40.1]} 8...
cxd4 {[%clk 0:02:37.8]} 9. exd4 {[%clk 0:02:39.6]} 9... Nc6 {[%clk 0:02:37.9]}
10. h5 {[%clk 0:02:30.3]} 10... Bxd3 {[%clk 0:02:37.2]} 11. Qxd3 {[%clk
0:02:31.2]} 11... Nxe5 {[%clk 0:02:29.7]} 12. Bxe5 {[%clk 0:02:32.1]} 12... Nd7
{[%clk 0:02:24.3]} 13. Bf4 {[%clk 0:02:14.3]} 13... Qa5 {[%clk 0:02:12.3]} 14.
h6 {[%clk 0:02:08.7]} 14... g6 {[%clk 0:02:11.8]} 15. Bd2 {[%clk 0:02:07.4]}
15... Qc7 {[%clk 0:02:08.7]} 16. O-O-O {[%clk 0:02:06.4]} 16... O-O-O {[%clk
0:02:07.8]} 17. Rh3 {[%clk 0:01:59.2]} 17... Nb6 {[%clk 0:02:07]} 18. Kb1 {[%clk
0:01:55.6]} 18... Nc4 {[%clk 0:02:05.8]} 19. Bc1 {[%clk 0:01:55.1]} 19... Bb4
{[%clk 0:02:04.9]} 20. Ne2 {[%clk 0:01:55.3]} 20... Kb8 {[%clk 0:02:01.8]} 21.
Rf3 {[%clk 0:01:40]} 21... Rd7 {[%clk 0:01:59.7]} 22. c3 {[%clk 0:01:31.2]}
22... Bd6 {[%clk 0:01:58.4]} 23. b3 {[%clk 0:01:30.8]} 23... Na5 {[%clk
0:01:54.2]} 24. Bf4 {[%clk 0:01:23.3]} 24... Rc8 {[%clk 0:01:50.5]} 25. Qd2
{[%clk 0:01:21.4]} 25... Ka8 {[%clk 0:01:46.7]} 26. Rc1 {[%clk 0:01:13.3]} 26...
Nc6 {[%clk 0:01:42.7]} 27. Bxd6 {[%clk 0:01:11.6]} 27... Qxd6 {[%clk 0:01:42.6]}
28. Nf4 {[%clk 0:01:11.3]} 28... Rdc7 {[%clk 0:01:39]} 29. Rd1 {[%clk
0:01:02.2]} 29... e5 {[%clk 0:00:57.3]} 30. dxe5 {[%clk 0:00:57.8]} 30... Nxe5
{[%clk 0:00:58.2]} 31. Rg3 {[%clk 0:00:56.5]} 31... d4 {[%clk 0:00:47.4]} 32.
Qxd4 {[%clk 0:00:49.3]} 32... Qxd4 {[%clk 0:00:32.7]} 33. cxd4 {[%clk
0:00:48.8]} 33... Nd7 {[%clk 0:00:32.7]} 34. Nd5 {[%clk 0:00:42.3]} 34... Rc2
{[%clk 0:00:25.9]} 35. Rf3 {[%clk 0:00:40.8]} 35... f5 {[%clk 0:00:25.5]} 36.
Ne7 {[%clk 0:00:37.1]} 36... R8c7 {[%clk 0:00:24.4]} 37. Nxg6 {[%clk 0:00:31.4]}
37... Re2 {[%clk 0:00:18.2]} 38. Nf4 {[%clk 0:00:31.5]} 38... Re4 {[%clk
0:00:17.1]} 39. d5 {[%clk 0:00:32.1]} 39... Ne5 {[%clk 0:00:16.1]} 40. d6 {[%clk
0:00:32]} 40... Rd7 {[%clk 0:00:12.5]} 41. Rc3 {[%clk 0:00:30.7]} 41... Rxf4
{[%clk 0:00:11.9]} 42. f3 {[%clk 0:00:28.9]} 42... Rh4 {[%clk 0:00:10.9]} 43.
Rc5 {[%clk 0:00:28.8]} 43... Nc6 {[%clk 0:00:10.2]} 44. Rxf5 {[%clk 0:00:28.2]}
44... Rxh6 {[%clk 0:00:10.3]} 45. Rfd5 {[%clk 0:00:28.9]} 45... Rf6 {[%clk
0:00:09.9]} 46. Kb2 {[%clk 0:00:24.7]} 46... h6 {[%clk 0:00:09.3]} 47. Kc3
{[%clk 0:00:24.2]} 47... b6 {[%clk 0:00:09.6]} 48. a4 {[%clk 0:00:20.8]} 48...
Kb7 {[%clk 0:00:10.5]} 49. b4 {[%clk 0:00:21.5]} 49... Nd8 {[%clk 0:00:09]} 50.
b5 {[%clk 0:00:12.2]} 50... axb5 {[%clk 0:00:09.9]} 51. axb5 {[%clk 0:00:13.1]}
51... Nf7 {[%clk 0:00:09.9]} 52. Re1 {[%clk 0:00:12.4]} 52... Rfxd6 {[%clk
0:00:09.2]} 53. Rxd6 {[%clk 0:00:10.9]} 53... Nxd6 {[%clk 0:00:10.1]} 54. Re5
{[%clk 0:00:09]} 54... Rg7 {[%clk 0:00:07.6]} 55. Kd4 {[%clk 0:00:04.1]} 55...
Rxg2 {[%clk 0:00:06.7]} 56. Re7+ {[%clk 0:00:04.4]} 56... Kb8 {[%clk 0:00:05.4]}
57. Kd5 {[%clk 0:00:05.1]} 57... Nc8 {[%clk 0:00:05.3]} 58. Rh7 {[%clk
0:00:04.9]} 58... Rg5+ {[%clk 0:00:05]} 59. Kc4 {[%clk 0:00:02.5]} 59... Rc5+
{[%clk 0:00:05.4]} 60. Kb4 {[%clk 0:00:02.9]} 60... h5 {[%clk 0:00:06]} 61. f4
{[%clk 0:00:02.5]} 61... Rf5 {[%clk 0:00:05.9]} 62. Kc3 {[%clk 0:00:02.3]} 62...
Rxb5 {[%clk 0:00:06]} 63. Kd4 {[%clk 0:00:02.9]} 63... Rc5 {[%clk 0:00:04.7]}
64. Rh6 {[%clk 0:00:02.7]} 64... Kc7 {[%clk 0:00:04.4]} 65. Rf6 {[%clk
0:00:02.6]} 65... Nd6 {[%clk 0:00:04.4]} 66. Re6 {[%clk 0:00:02.4]} 66... Rf5
{[%clk 0:00:04.5]} 67. Ke3 {[%clk 0:00:02.6]} 67... b5 {[%clk 0:00:05]} 68. Kf3
{[%clk 0:00:03]} 68... b4 {[%clk 0:00:05.2]} 69. Re3 {[%clk 0:00:02.6]} 69...
Rb5 {[%clk 0:00:05.6]} 70. Rb3 {[%clk 0:00:02.9]} 70... Kc6 {[%clk 0:00:06]} 71.
Ke3 {[%clk 0:00:03.5]} 71... Kd5 {[%clk 0:00:06.3]} 72. Kd3 {[%clk 0:00:04]}
72... Nc4 {[%clk 0:00:06]} 73. f5 {[%clk 0:00:03.1]} 73... Ne5+ {[%clk
0:00:06.1]} 74. Ke3 {[%clk 0:00:03.8]} 74... Kc4 {[%clk 0:00:06.7]} 75. Rb1
{[%clk 0:00:04.2]} 75... b3 {[%clk 0:00:07.1]} 76. f6 {[%clk 0:00:04.8]} 76...
b2 {[%clk 0:00:07]} 77. Ke4 {[%clk 0:00:04.7]} 77... Nf7 {[%clk 0:00:07.2]} 78.
Kf4 {[%clk 0:00:04.4]} 78... Kc3 {[%clk 0:00:07.5]} 79. Ke3 {[%clk 0:00:03.8]}
79... Kc2 {[%clk 0:00:07.6]} 0-1